fUST/lending_fUST_20260421
["ID","MTS","AMOUNT","RATE_DAILY","PERIOD"]
[420914148,1776718238344,-1932.8117846,0.00012186,2]
[420914149,1776718238354,-1344.48156901,0.00012186,2]
[420914156,1776718240265,-1467.57602739,0.00012186,2]
[420914157,1776718240275,-645.0,0.00012201,2]
[420914158,1776718240284,-2209.0,0.00012201,2]
[420914159,1776718240293,-150.0,0.00012337,2]
[420914160,1776718240302,-500.0,0.00012473,2]
[420914161,1776718240316,-500.0,0.00012473,2]
[420914162,1776718240334,-500.0,0.00012473,2]
[420914163,1776718240353,-503.54666915,0.00012473,2]
[420914164,1776718240363,-500.0,0.00012473,2]
[420914165,1776718240372,-500.0,0.00012473,2]
[420914166,1776718240381,-500.0,0.00012473,2]
[420914167,1776718240390,-500.0,0.00012473,2]
[420914168,1776718240399,-500.0,0.00012473,2]
[420914169,1776718240408,-500.0,0.00012473,2]
[420914170,1776718240417,-2230.315306,0.00012491,2]
[420914171,1776718240426,-206.99005555,0.00012499,2]
[420914172,1776718240435,-500.0,0.00012499,2]
[420914173,1776718240445,-500.0,0.00012499,2]
[420914174,1776718240454,-500.0,0.00012499,2]
[420914175,1776718240463,-465.38725526,0.00012499,2]
[420914176,1776718240473,-500.0,0.00012499,2]
[420914177,1776718240482,-500.0,0.00012499,2]
[420914178,1776718240492,-500.0,0.00012499,2]
[420914179,1776718240502,-623.83341637,0.00012499,2]
[420914180,1776718240511,-500.0,0.00012499,2]
[420914181,1776718240520,-500.0,0.00012499,2]
[420914182,1776718240530,-500.0,0.00012499,2]
[420914183,1776718240540,-500.0,0.00012499,2]
[420914184,1776718240549,-500.0,0.00012499,2]
[420914185,1776718240559,-185.90359561,0.00012499,2]
[420914186,1776718240568,-500.0,0.00012499,2]
[420914187,1776718240578,-500.0,0.00012499,2]
[420914188,1776718240587,-500.0,0.00012499,2]
[420914189,1776718240596,-500.0,0.00012499,2]
[420914190,1776718240606,-600.0,0.00012499,2]
[420914191,1776718240616,-151.0,0.000125,2]
[420914192,1776718240625,-151.0,0.000125,2]
[420914193,1776718240634,-151.0,0.000125,2]
[420914194,1776718240644,-151.0,0.000125,2]
[420914195,1776718240654,-151.0,0.000125,2]
[420914196,1776718240663,-151.0,0.000125,2]
[420914197,1776718240673,-8951.2875109,0.000125,2]
[420914198,1776718240684,-643.78105749,0.000125,2]
[420914228,1776718243204,-7470.39449217,0.000125,2]
[420914237,1776718246102,-67624.54527232,0.000125,2]
[420914257,1776718471397,2123.48,0.0002465,120]
[420914258,1776718506552,175.0,0.00023769,120]
[420914259,1776718862113,-442.2299223,7.524e-05,2]
[420914342,1776719432276,-595.47082767,7.084e-05,2]
[420914344,1776719432287,-5000.0,7.156e-05,2]
[420914346,1776719432296,-192.95631135,7.412e-05,2]
[420914348,1776719432305,-300.0,7.599e-05,2]
[420914350,1776719432315,-289.60815915,7.6e-05,2]
[420914353,1776719432331,-598.03811208,7.6e-05,2]
[420914798,1776719438343,-192.95631135,7.12e-05,2]
[420914799,1776719438352,-71602.63226428,7.6e-05,2]
[420914800,1776719438364,-15604.98998394,7.6e-05,2]
[420914801,1776719438376,-2409.85894404,7.6e-05,2]
[420914802,1776719438387,-1998.64162661,7.6e-05,2]
[420914803,1776719438503,-22494.52783144,7.6e-05,2]
[420914804,1776719438512,-8668.42295392,7.857e-05,2]
[420914805,1776719438522,-287.0,8.359e-05,2]
[420914806,1776719438531,-227.68844739,9.12e-05,2]
[420914807,1776719438540,-262.42058343,0.0001112,2]
[420914808,1776719438549,-645.0,0.00011704,2]
[420914809,1776719438558,-1406.0,0.00011704,2]
[420914810,1776719438567,-2207.0,0.00011704,2]
[420914811,1776719438576,-280.0,0.00011975,2]
[420914812,1776719438585,-385.0,0.00011975,2]
[420914813,1776719438595,-550.0,0.00011975,2]
[420914814,1776719438604,-419.0,0.00011975,2]
[420914815,1776719438614,-150.0,0.00012201,2]
[420914816,1776719438623,-66776.46454258,0.000123,2]
[420914817,1776719438632,-536.65734316,0.00012385,2]
[420914818,1776719438641,-2150.738,0.00012393,2]
[420914819,1776719438651,-760.78592618,0.000124,2]
[420914820,1776719438660,-2010.61203442,0.000124,2]
[420914821,1776719438669,-1671.47286133,0.000124,2]
[420914822,1776719438678,-753.89415896,0.000124,2]
[420914823,1776719438687,-6094.9148904,0.00012447,2]
[420914824,1776719438696,-358.0160056,0.00012447,2]
[420914825,1776719438705,-553.04216444,0.000125,2]
[420914826,1776719438715,-2212.16865777,0.000125,2]
[420914827,1776719438725,-4972.40210051,0.000125,2]
[420914828,1776719438734,-151.0,0.000125,2]
[420914829,1776719438744,-498.03904204,0.000125,2]
[420914830,1776719438753,-166.0,0.00012546,2]
[420914831,1776719438762,-155.0,0.00012546,2]
[420914832,1776719438772,-155.0,0.00012546,2]
[420914833,1776719438781,-648.0,0.00012546,2]
[420914834,1776719438791,-648.0,0.00012546,2]
[420914835,1776719438800,-166.0,0.00012546,2]
[420914836,1776719438809,-648.0,0.00012546,2]
[420914837,1776719439008,-264.45488306,0.00012546,2]
[420914838,1776719439017,-648.0,0.00012546,2]
[420914839,1776719439027,-648.0,0.00012546,2]
[420914840,1776719439035,-648.0,0.00012546,2]
[420914841,1776719439045,-648.0,0.00012546,2]
[420914842,1776719439054,-648.0,0.00012546,2]
[420914843,1776719439063,-648.0,0.00012546,2]
[420914844,1776719439072,-340.0,0.00012546,2]
[420914845,1776719439081,-648.0,0.00012546,2]
[420914846,1776719439087,-648.0,0.00012546,2]
[420914847,1776719439094,-648.0,0.00012546,2]
[420914848,1776719439101,-648.0,0.00012546,2]
[420914849,1776719439107,-648.0,0.00012546,2]
[420914850,1776719439115,-648.0,0.00012546,2]
[420914851,1776719439124,-648.0,0.00012546,2]
[420914852,1776719439134,-648.0,0.00012546,2]
[420914853,1776719439143,-648.0,0.00012546,2]
[420914854,1776719439152,-179.0,0.00012546,2]
[420914855,1776719439162,-648.0,0.00012546,2]
[420914856,1776719439171,-179.0,0.00012546,2]
[420914857,1776719439180,-648.0,0.00012546,2]
[420914858,1776719439189,-180.6623236,0.00012546,2]
[420914859,1776719439198,-648.0,0.00012546,2]
[420914860,1776719439208,-648.0,0.00012546,2]
[420914861,1776719439217,-648.0,0.00012546,2]
[420914862,1776719439226,-648.0,0.00012546,2]
[420914863,1776719439236,-300.93742755,0.00012546,2]
[420914864,1776719439245,-648.0,0.00012546,2]
[420914865,1776719439254,-648.0,0.00012546,2]
[420914866,1776719439263,-648.0,0.00012546,2]
[420914867,1776719439272,-648.0,0.00012546,2]
[420914868,1776719439281,-648.0,0.00012546,2]
[420914869,1776719439292,-648.0,0.00012546,2]
[420914870,1776719439302,-212.78794441,0.00012546,2]
[420914871,1776719439311,-775.44200547,0.000126,2]
[420914872,1776719439321,-1879.09700652,0.000126,2]
[420914873,1776719439330,-1857.6220289,0.000126,2]
[420914874,1776719439339,-151.0,0.000126,2]
[420914875,1776719439349,-151.0,0.000126,2]
[420914876,1776719439359,-150.0,0.00012637,2]
[420914877,1776719439368,-5888.0,0.00012674,2]
[420914878,1776719439377,-5888.0,0.00012699,2]
[420914879,1776719439386,-151.0,0.000127,2]
[420914880,1776719439395,-151.5,0.00012726,7]
[420914881,1776719439405,-5888.0,0.00012736,2]
[420914882,1776719439414,-5888.0,0.00012749,2]
[420914883,1776719439424,-5888.0,0.00012766,2]
[420914884,1776719439432,-5888.0,0.00012795,2]
[420914885,1776719439440,-13430.0,0.000128,2]
[420914886,1776719439449,-151.0,0.000128,2]
[420914887,1776719439458,-5888.0,0.000128,2]
[420914888,1776719439467,-152.0,0.00012804,7]
[420914889,1776719439476,-152.0,0.00012817,7]
[420914890,1776719439486,-5888.0,0.00012877,2]
[420914891,1776719439495,-5888.0,0.00012885,2]
[420914892,1776719439505,-151.0,0.000129,2]
[420914893,1776719439514,-13554.84925655,0.000129,2]
[420914894,1776719439523,-8222.99678221,0.000129,2]
[420915349,1776719446446,-5000.0,0.00012771,2]
[420915352,1776719446456,-5331.85247431,0.000129,2]
[420915354,1776719446466,-13554.84925652,0.000129,2]
[420915356,1776719446475,-5888.0,0.00012916,2]
[420915358,1776719446484,-150.0,0.00012919,2]
[420915360,1776719446494,-2230.315306,0.00012941,2]
[420915362,1776719446503,-13554.84925652,0.00012961,2]
[420915364,1776719446513,-280.0,0.00012975,2]
[420915366,1776719446522,-385.0,0.00012975,2]
[420915368,1776719446531,-550.0,0.00012975,2]
[420915370,1776719446540,-419.0,0.00012975,2]
[420915372,1776719446550,-5888.0,0.00012981,2]
[420915374,1776719446559,-160.0,0.00012991,2]
[420915376,1776719446568,-151.5,0.00013,7]
[420915378,1776719446577,-500.0,0.00013,7]
[420915380,1776719446587,-3301.16111615,0.00013022,2]
[420915382,1776719446596,-600.0,0.00013043,2]
[420915384,1776719446605,-151.0,0.000131,2]
[420915386,1776719446617,-5888.0,0.00013103,2]
[420915388,1776719446626,-297.15271948,0.0001312,2]
[420915390,1776719446635,-285.5699453,0.00013152,2]
[420915392,1776719446645,-300.0,0.00013157,2]
[420915394,1776719446654,-300.0,0.00013157,2]
[420915396,1776719446663,-5888.0,0.00013172,2]
[420915398,1776719446672,-151.0,0.000132,2]
[420915400,1776719446680,-164.44,0.00013237,2]
[420915401,1776719446689,-455.7290828,0.00013258,2]
[420915403,1776719446698,-165.5,0.00013274,7]
[420915405,1776719446707,-5888.0,0.00013298,2]
[420915407,1776719446718,-5888.0,0.00013324,2]
[420915409,1776719446727,-150.32309376,0.00013332,7]
[420915411,1776719446736,-5888.0,0.00013335,2]
[420915413,1776719446746,-5888.0,0.00013338,2]
[420915416,1776719446755,-151.0,0.000134,2]
[420915418,1776719446765,-151.0,0.000134,2]
[420915419,1776719446774,-5888.0,0.000134,2]
[420915421,1776719446782,-150.32309376,0.00013424,2]
[420915423,1776719446792,-160.0,0.00013425,2]
[420915425,1776719446802,-230.770309,0.00013425,2]
[420915427,1776719446812,-301.540618,0.00013425,2]
[420915429,1776719446822,-160.0,0.00013425,2]
[420915431,1776719446831,-671.30821,0.00013425,2]
[420915433,1776719446841,-1182.61642,0.00013425,2]
[420915434,1776719446850,-5888.0,0.00013475,2]
[420915435,1776719446859,-5888.0,0.00013477,2]
[420915436,1776719446869,-2312.83697232,0.00013489,2]
[420915437,1776719446879,-5888.0,0.00013491,2]
[420915438,1776719446888,-189.209,0.00013494,2]
[420915439,1776719446897,-5888.0,0.00013527,2]
[420915440,1776719446907,-1990.16401199,0.00013557,2]
[420915441,1776719446916,-821.0,0.00013569,2]
[420915442,1776719446927,-150.32309376,0.00013606,7]
[420915443,1776719446936,-5888.0,0.00013661,2]
[420915444,1776719446946,-500.0,0.00013673,2]
[420915445,1776719446955,-500.0,0.00013673,2]
[420915446,1776719446965,-500.0,0.00013673,2]
[420915447,1776719446974,-500.0,0.00013673,2]
[420915448,1776719446984,-498.90117926,0.00013673,2]
[420915449,1776719446993,-180.15930035,0.00013673,2]
[420915450,1776719447003,-500.0,0.00013673,2]
[420915451,1776719447012,-520.5252242,0.00013673,2]
[420915452,1776719447022,-500.0,0.00013673,2]
[420915453,1776719447032,-508.42731575,0.00013673,2]
[420915454,1776719447041,-500.0,0.00013673,2]
[420915455,1776719447051,-2144.48274327,0.00013682,2]
[420915456,1776719447061,-2107.963936,0.00013693,2]
[420915457,1776719447071,-160.0,0.00013693,2]
[420915458,1776719447080,-535.683785,0.00013693,2]
[420915459,1776719447090,-911.36757,0.00013693,2]
[420915460,1776719447099,-623.10993642,0.00013696,2]
[420915461,1776719447109,-618.74458754,0.00013698,2]
[420915462,1776719447118,-500.0,0.00013698,2]
[420915463,1776719447128,-500.0,0.00013698,2]
[420915464,1776719447142,-500.0,0.00013698,2]
[420915465,1776719447152,-500.0,0.00013698,2]
[420915466,1776719447162,-500.0,0.00013698,2]
[420915467,1776719447173,-500.0,0.00013698,2]
[420915468,1776719447183,-500.0,0.00013698,2]
[420915469,1776719447192,-500.0,0.00013698,2]
[420915470,1776719447202,-270.7656333,0.00013698,2]
[420915471,1776719447212,-500.0,0.00013698,2]
[420915472,1776719447222,-500.0,0.00013698,2]
[420915473,1776719447232,-500.0,0.00013698,2]
[420915474,1776719447241,-373.80516071,0.00013698,2]
[420915475,1776719447250,-500.0,0.00013698,2]
[420915476,1776719447260,-500.0,0.00013698,2]
[420915477,1776719447269,-500.0,0.00013698,2]
[420915478,1776719447278,-500.0,0.00013698,2]
[420915479,1776719447287,-500.0,0.00013698,2]
[420915480,1776719447296,-500.0,0.00013698,2]
[420915481,1776719447306,-500.0,0.00013698,2]
[420915482,1776719447315,-500.0,0.00013698,2]
[420915483,1776719447325,-500.0,0.00013698,2]
[420915484,1776719447335,-500.0,0.00013698,2]
[420915485,1776719447344,-500.0,0.00013698,2]
[420915486,1776719447354,-500.0,0.00013698,2]
[420915488,1776719447363,-500.0,0.00013698,2]
[420915489,1776719447372,-500.0,0.00013698,2]
[420915491,1776719447381,-500.0,0.00013698,2]
[420915493,1776719447390,-500.0,0.00013698,2]
[420915495,1776719447400,-500.0,0.00013698,2]
[420915497,1776719447409,-500.0,0.00013698,2]
[420915499,1776719447419,-500.0,0.00013698,2]
[420915501,1776719447429,-554.17811504,0.00013698,2]
[420915503,1776719447438,-500.0,0.00013698,2]
[420915505,1776719447448,-500.0,0.00013698,2]
[420915506,1776719447458,-500.0,0.00013698,2]
[420915508,1776719447468,-500.0,0.00013698,2]
[420915511,1776719447479,-500.0,0.00013698,2]
[420915513,1776719447488,-500.0,0.00013698,2]
[420915515,1776719447498,-500.0,0.00013698,2]
[420915517,1776719447508,-500.0,0.00013698,2]
[420915519,1776719447518,-500.0,0.00013698,2]
[420915521,1776719447528,-449.608031,0.00013698,2]
[420915523,1776719447537,-529.14618257,0.00013698,2]
[420915525,1776719447547,-1298.97,0.00013698,2]
[420915527,1776719447558,-1298.97,0.00013698,2]
[420915529,1776719447567,-1298.97,0.00013698,2]
[420915531,1776719447577,-1298.97,0.00013698,2]
[420915533,1776719447586,-1298.97,0.00013698,2]
[420915535,1776719447596,-1298.97,0.00013698,2]
[420915537,1776719447605,-1298.97,0.00013698,2]
[420915539,1776719447614,-1298.97,0.00013698,2]
[420915541,1776719447623,-1298.97,0.00013698,2]
[420915542,1776719447633,-1298.97,0.00013698,2]
[420915544,1776719447642,-1298.97,0.00013698,2]
[420915546,1776719447652,-1298.97,0.00013698,2]
[420915548,1776719447662,-1298.97,0.00013698,2]
[420915550,1776719447671,-1298.97,0.00013698,2]
[420915552,1776719447681,-1298.97,0.00013698,2]
[420915554,1776719447690,-1298.97,0.00013698,2]
[420915556,1776719447700,-1298.97,0.00013698,2]
[420915558,1776719447709,-1298.97,0.00013698,2]
[420915560,1776719447719,-1298.97,0.00013698,2]
[420915562,1776719447728,-1298.97,0.00013698,2]
[420915564,1776719447738,-1298.97,0.00013698,2]
[420915566,1776719447747,-1298.97,0.00013698,2]
[420915568,1776719447756,-1298.97,0.00013698,2]
[420915570,1776719447766,-1299.1710048,0.00013698,2]
[420915572,1776719447775,-515.22,0.00013698,2]
[420915574,1776719447784,-515.22,0.00013698,2]
[420915576,1776719447794,-515.22,0.00013698,2]
[420915577,1776719447804,-515.22,0.00013698,2]
[420915579,1776719447813,-515.22,0.00013698,2]
[420915581,1776719447823,-515.22,0.00013698,2]
[420915584,1776719447836,-515.22,0.00013698,2]
[420915585,1776719447846,-515.22,0.00013698,2]
[420915587,1776719447856,-515.22,0.00013698,2]
[420915589,1776719447866,-515.22,0.00013698,2]
[420915591,1776719447876,-515.22,0.00013698,2]
[420915593,1776719447885,-515.22,0.00013698,2]
[420915595,1776719447895,-515.22,0.00013698,2]
[420915597,1776719447904,-515.22,0.00013698,2]
[420915599,1776719447914,-515.22,0.00013698,2]
[420915601,1776719447924,-515.22,0.00013698,2]
[420915603,1776719447934,-515.22,0.00013698,2]
[420915605,1776719447943,-515.22,0.00013698,2]
[420915607,1776719447952,-515.22,0.00013698,2]
[420915609,1776719447961,-515.22,0.00013698,2]
[420915610,1776719447971,-515.22,0.00013698,2]
[420915612,1776719447982,-515.22,0.00013698,2]
[420915614,1776719447991,-515.22,0.00013698,2]
[420915616,1776719448001,-515.35965901,0.00013698,2]
[420915618,1776719448011,-500.0,0.00013698,2]
[420915620,1776719448020,-500.0,0.00013698,2]
[420915622,1776719448030,-500.0,0.00013698,2]
[420915624,1776719448039,-500.0,0.00013698,2]
[420915626,1776719448049,-500.0,0.00013698,2]
[420915628,1776719448058,-500.0,0.00013698,2]
[420915630,1776719448068,-500.0,0.00013698,2]
[420915632,1776719448077,-500.0,0.00013698,2]
[420915634,1776719448087,-252.16015,0.00013698,2]
[420915636,1776719448096,-510.66,0.00013698,2]
[420915638,1776719448105,-150.32309376,0.00013698,2]
[420915639,1776719448115,-156.0,0.00013699,2]
[420915641,1776719448124,-179.9640072,0.00013699,2]
[420915643,1776719448134,-1000.0,0.00013699,2]
[420915645,1776719448143,-4086.997234,0.00013699,2]
[420915646,1776719448153,-151.0,0.00013699,2]
[420915647,1776719448162,-151.0,0.00013699,2]
[420915648,1776719448172,-151.0,0.00013699,2]
[420915649,1776719448181,-151.0,0.00013699,2]
[420915650,1776719448191,-151.0,0.00013699,2]
[420915651,1776719448201,-249.689029,0.00013699,2]
[420915652,1776719448210,-151.0,0.00013699,2]
[420915653,1776719448220,-151.164276,0.00013699,2]
[420915654,1776719448229,-151.0,0.00013699,2]
[420915655,1776719448238,-151.0,0.00013699,2]
[420915656,1776719448248,-151.0,0.00013699,2]
[420915657,1776719448257,-233.393118,0.00013699,2]
[420915658,1776719448266,-151.0,0.00013699,2]
[420915659,1776719448276,-151.0,0.00013699,2]
[420915660,1776719448286,-151.0,0.00013699,2]
[420915661,1776719448295,-151.0,0.00013699,2]
[420915662,1776719448305,-151.0,0.00013699,2]
[420915663,1776719448314,-151.0,0.00013699,2]
[420915664,1776719448323,-151.0,0.00013699,2]
[420915665,1776719448333,-151.0,0.00013699,2]
[420915666,1776719448342,-151.0,0.00013699,2]
[420915667,1776719448351,-151.0,0.00013699,2]
[420915668,1776719448361,-151.0,0.00013699,2]
[420915669,1776719448370,-151.0,0.00013699,2]
[420915670,1776719448379,-173.356483,0.00013699,2]
[420915671,1776719448388,-151.0,0.00013699,2]
[420915672,1776719448398,-151.0,0.00013699,2]
[420915673,1776719448407,-151.0,0.00013699,2]
[420915674,1776719448417,-151.0,0.00013699,2]
[420915675,1776719448426,-174.44408,0.00013699,2]
[420915676,1776719448436,-151.0,0.00013699,2]
[420915677,1776719448445,-151.0,0.00013699,2]
[420915678,1776719448455,-151.0,0.00013699,2]
[420915679,1776719448464,-151.0,0.00013699,2]
[420915680,1776719448475,-151.0,0.00013699,2]
[420915681,1776719448493,-239.181479,0.00013699,2]
[420915682,1776719448504,-151.0,0.00013699,2]
[420915683,1776719448513,-151.0,0.00013699,2]
[420915684,1776719448523,-151.0,0.00013699,2]
[420915685,1776719448532,-151.0,0.00013699,2]
[420915686,1776719448542,-199.428138,0.00013699,2]
[420915687,1776719448552,-151.0,0.00013699,2]
[420915688,1776719448562,-151.0,0.00013699,2]
[420915689,1776719448571,-151.0,0.00013699,2]
[420915690,1776719448580,-151.0,0.00013699,2]
[420915691,1776719448590,-151.0,0.00013699,2]
[420915692,1776719448600,-151.0,0.00013699,2]
[420915693,1776719448609,-151.0,0.00013699,2]
[420915694,1776719448619,-151.0,0.00013699,2]
[420915695,1776719448628,-151.0,0.00013699,2]
[420915696,1776719448638,-151.0,0.00013699,2]
[420915697,1776719448648,-151.0,0.00013699,2]
[420915698,1776719448657,-151.0,0.00013699,2]
[420915699,1776719448666,-151.0,0.00013699,2]
[420915700,1776719448676,-151.0,0.00013699,2]
[420915701,1776719448685,-151.0,0.00013699,2]
[420915702,1776719448695,-151.0,0.00013699,2]
[420915703,1776719448704,-151.0,0.00013699,2]
[420915704,1776719448714,-156.493052,0.00013699,2]
[420915705,1776719448723,-489.8765,0.00013699,2]
[420915706,1776719448732,-489.8765,0.00013699,2]
[420915707,1776719448743,-489.8765,0.00013699,2]
[420915708,1776719448753,-489.8765,0.00013699,2]
[420915709,1776719448762,-489.8765,0.00013699,2]
[420915710,1776719448772,-489.8765,0.00013699,2]
[420915711,1776719448782,-489.8765,0.00013699,2]
[420915712,1776719448791,-489.8765,0.00013699,2]
[420915713,1776719448801,-489.8765,0.00013699,2]
[420915714,1776719448810,-489.8765,0.00013699,2]
[420915715,1776719448820,-489.8765,0.00013699,2]
[420915716,1776719448829,-489.8765,0.00013699,2]
[420915717,1776719448839,-489.8765,0.00013699,2]
[420915718,1776719448849,-489.8765,0.00013699,2]
[420915719,1776719448858,-489.8765,0.00013699,2]
[420915720,1776719448867,-489.8765,0.00013699,2]
[420915721,1776719448877,-489.8765,0.00013699,2]
[420915722,1776719449124,-489.8765,0.00013699,2]
[420915723,1776719449134,-489.8765,0.00013699,2]
[420915724,1776719449143,-489.8765,0.00013699,2]
[420915725,1776719449152,-65000.0,0.00013699,2]
[420915726,1776719449162,-181.264513,0.00013699,2]
[420915727,1776719449171,-181.264513,0.00013699,2]
[420915728,1776719449181,-181.264513,0.00013699,2]
[420915729,1776719449191,-181.264513,0.00013699,2]
[420915730,1776719449201,-181.264513,0.00013699,2]
[420915731,1776719449211,-181.264513,0.00013699,2]
[420915732,1776719449221,-181.264513,0.00013699,2]
[420915733,1776719449231,-181.264513,0.00013699,2]
[420915734,1776719449241,-181.264513,0.00013699,2]
[420915735,1776719449251,-181.264513,0.00013699,2]
[420915736,1776719449261,-181.264513,0.00013699,2]
[420915737,1776719449271,-181.264513,0.00013699,2]
[420915738,1776719449280,-181.264513,0.00013699,2]
[420915739,1776719449289,-181.264513,0.00013699,2]
[420915740,1776719449298,-181.264513,0.00013699,2]
[420915741,1776719449308,-181.264513,0.00013699,2]
[420915742,1776719449317,-181.264513,0.00013699,2]
[420915743,1776719449326,-181.264513,0.00013699,2]
[420915744,1776719449336,-181.264513,0.00013699,2]
[420915745,1776719449346,-181.264512,0.00013699,2]
[420915746,1776719449355,-151.0,0.00013699,2]
[420915747,1776719449364,-151.0,0.00013699,2]
[420915748,1776719449374,-151.0,0.00013699,2]
[420915749,1776719449383,-151.0,0.00013699,2]
[420915750,1776719449393,-151.0,0.00013699,2]
[420915751,1776719449402,-151.0,0.00013699,2]
[420915752,1776719449411,-151.0,0.00013699,2]
[420915753,1776719449420,-151.0,0.00013699,2]
[420915754,1776719449430,-279.29104,0.00013699,2]
[420915755,1776719449439,-170.418236,0.00013699,2]
[420915756,1776719449448,-170.418236,0.00013699,2]
[420915757,1776719449458,-170.418236,0.00013699,2]
[420915758,1776719449467,-170.418236,0.00013699,2]
[420915759,1776719449476,-170.418236,0.00013699,2]
[420915760,1776719449486,-170.418236,0.00013699,2]
[420915761,1776719449495,-170.418236,0.00013699,2]
[420915762,1776719449504,-170.418236,0.00013699,2]
[420915763,1776719449514,-170.418236,0.00013699,2]
[420915764,1776719449523,-170.418236,0.00013699,2]
[420915765,1776719449532,-170.418236,0.00013699,2]
[420915766,1776719449542,-170.418236,0.00013699,2]
[420915767,1776719449551,-170.418236,0.00013699,2]
[420915768,1776719449561,-170.418236,0.00013699,2]
[420915769,1776719449570,-170.418236,0.00013699,2]
[420915770,1776719449579,-170.418236,0.00013699,2]
[420915771,1776719449589,-170.418236,0.00013699,2]
[420915772,1776719449599,-170.418236,0.00013699,2]
[420915773,1776719449608,-170.418236,0.00013699,2]
[420915774,1776719449617,-170.418229,0.00013699,2]
[420915775,1776719449627,-333.890896,0.00013699,2]
[420915776,1776719449637,-333.890896,0.00013699,2]
[420915777,1776719449646,-333.890896,0.00013699,2]
[420915778,1776719449656,-333.890896,0.00013699,2]
[420915779,1776719449665,-333.890896,0.00013699,2]
[420915780,1776719449674,-333.890896,0.00013699,2]
[420915781,1776719449684,-333.890896,0.00013699,2]
[420915782,1776719449693,-333.890896,0.00013699,2]
[420915783,1776719449703,-333.890896,0.00013699,2]
[420915784,1776719449712,-333.890896,0.00013699,2]
[420915785,1776719449722,-333.890896,0.00013699,2]
[420915786,1776719449732,-333.890896,0.00013699,2]
[420915787,1776719449741,-333.890896,0.00013699,2]
[420915788,1776719449751,-333.890896,0.00013699,2]
[420915789,1776719449761,-333.890896,0.00013699,2]
[420915790,1776719449770,-333.890896,0.00013699,2]
[420915791,1776719449779,-333.890896,0.00013699,2]
[420915792,1776719449788,-333.890896,0.00013699,2]
[420915793,1776719449799,-333.890896,0.00013699,2]
[420915794,1776719449808,-333.890887,0.00013699,2]
[420915795,1776719449818,-838.629795,0.00013699,2]
[420915796,1776719449828,-151.0,0.00013699,2]
[420915797,1776719449837,-151.0,0.00013699,2]
[420915798,1776719449847,-151.0,0.00013699,2]
[420915799,1776719449856,-151.0,0.00013699,2]
[420915800,1776719449866,-151.0,0.00013699,2]
[420915801,1776719449876,-151.0,0.00013699,2]
[420915802,1776719449886,-151.0,0.00013699,2]
[420915803,1776719449896,-151.0,0.00013699,2]
[420915804,1776719449906,-151.0,0.00013699,2]
[420915805,1776719449915,-151.0,0.00013699,2]
[420915806,1776719449925,-151.0,0.00013699,2]
[420915807,1776719449934,-151.0,0.00013699,2]
[420915808,1776719449943,-151.0,0.00013699,2]
[420915809,1776719449952,-151.0,0.00013699,2]
[420915810,1776719449961,-241.086679,0.00013699,2]
[420915811,1776719449971,-914.91248,0.00013699,2]
[420915812,1776719449980,-914.91248,0.00013699,2]
[420915813,1776719449990,-914.91248,0.00013699,2]
[420915814,1776719450000,-914.91248,0.00013699,2]